[Event "*** Titled Tuesday Blitz"]
[Site "Chess.com"]
[Date "2019.07.02"]
[Round "7"]
[White "Mazanchenko_Dmitry"]
[Black "xdb"]
[Result "0-1"]
[WhiteElo "2216"]
[BlackElo "2226"]
[TimeControl "180+2"]
[EndTime "14:36:26 PDT"]
[Termination "xdb won on time"]

1. e4 {[%clk 0:03:01.9]} 1... c5 {[%clk 0:03:00.8]} 2. Ne2 {[%clk 0:03:02.1]}
2... e6 {[%clk 0:03:00.9]} 3. Nbc3 {[%clk 0:03:03.5]} 3... Nc6 {[%clk
0:02:59.5]} 4. d4 {[%clk 0:03:03.8]} 4... cxd4 {[%clk 0:03:00]} 5. Nxd4 {[%clk
0:03:05.7]} 5... d6 {[%clk 0:02:57.5]} 6. Be3 {[%clk 0:02:50.5]} 6... Nf6 {[%clk
0:02:58.5]} 7. f3 {[%clk 0:02:50.5]} 7... Be7 {[%clk 0:02:51.5]} 8. Qd2 {[%clk
0:02:51.3]} 8... Bd7 {[%clk 0:02:52.9]} 9. Ndb5 {[%clk 0:02:51]} 9... O-O {[%clk
0:02:33.4]} 10. Nxd6 {[%clk 0:02:50.6]} 10... Qb8 {[%clk 0:02:19.2]} 11. O-O-O
{[%clk 0:02:45.7]} 11... Rd8 {[%clk 0:02:20.7]} 12. Bf4 {[%clk 0:01:58.5]} 12...
e5 {[%clk 0:02:17]} 13. Bg5 {[%clk 0:01:59.6]} 13... Be6 {[%clk 0:02:11.8]} 14.
Bxf6 {[%clk 0:01:54.9]} 14... gxf6 {[%clk 0:02:12.3]} 15. Nd5 {[%clk 0:01:24.6]}
15... Bxd5 {[%clk 0:02:03.6]} 16. exd5 {[%clk 0:00:45]} 16... Rxd6 {[%clk
0:02:02.4]} 17. Bd3 {[%clk 0:00:27.2]} 17... Nd8 {[%clk 0:01:44.1]} 18. Qh6
{[%clk 0:00:26.2]} 18... f5 {[%clk 0:01:43.3]} 19. Qh3 {[%clk 0:00:22.1]} 19...
Qc7 {[%clk 0:00:42]} 20. Qxf5 {[%clk 0:00:19]} 20... Rg6 {[%clk 0:00:38.6]} 21.
h4 {[%clk 0:00:19.4]} 21... Qc8 {[%clk 0:00:35.6]} 22. Qe4 {[%clk 0:00:19.8]}
22... Bd6 {[%clk 0:00:26.9]} 23. h5 {[%clk 0:00:20.4]} 23... Rg7 {[%clk
0:00:26.4]} 24. Rh4 {[%clk 0:00:20.5]} 24... h6 {[%clk 0:00:23.4]} 25. Rg4
{[%clk 0:00:18.1]} 25... f5 {[%clk 0:00:24.9]} 26. Rxg7+ {[%clk 0:00:18.7]}
26... Kxg7 {[%clk 0:00:26.8]} 27. Qh4 {[%clk 0:00:15]} 27... Nf7 {[%clk
0:00:24.8]} 28. g4 {[%clk 0:00:14.5]} 28... f4 {[%clk 0:00:19]} 29. Bf5 {[%clk
0:00:11.9]} 29... Qd8 {[%clk 0:00:17.5]} 30. Qh1 {[%clk 0:00:12.3]} 30... Ng5
{[%clk 0:00:17.9]} 31. Qf1 {[%clk 0:00:12.2]} 31... Qb6 {[%clk 0:00:17.5]} 32.
c3 {[%clk 0:00:10.7]} 32... Qe3+ {[%clk 0:00:17.9]} 33. Kb1 {[%clk 0:00:11.4]}
33... Qxf3 {[%clk 0:00:19.3]} 34. Qe1 {[%clk 0:00:07]} 34... e4 {[%clk
0:00:19.1]} 35. Rd4 {[%clk 0:00:04.9]} 35... e3 {[%clk 0:00:18.8]} 36. Rd3
{[%clk 0:00:04.1]} 36... Rf8 {[%clk 0:00:18.3]} 37. a3 {[%clk 0:00:03.7]} 37...
Rxf5 {[%clk 0:00:18.6]} 38. gxf5 {[%clk 0:00:04]} 38... Qe4 {[%clk 0:00:20.1]}
39. Kc2 {[%clk 0:00:03.1]} 39... f3 {[%clk 0:00:20.1]} 0-1

[Event "*** Titled Tuesday Blitz"]
[Site "Chess.com"]
[Date "2019.07.02"]
[Round "7"]
[White "NM2019"]
[Black "XiaoKangZhong"]
[Result "1-0"]
[WhiteElo "2143"]
[BlackElo "2242"]
[TimeControl "180+2"]
[EndTime "14:36:27 PDT"]
[Termination "NM2019 won by resignation"]

1. c4 {[%clk 0:03:01.7]} 1... e5 {[%clk 0:02:57.4]} 2. Nc3 {[%clk 0:03:02.6]}
2... f5 {[%clk 0:02:58.2]} 3. Nf3 {[%clk 0:03:04.1]} 3... d6 {[%clk 0:02:58.9]}
4. e4 {[%clk 0:03:04.9]} 4... f4 {[%clk 0:02:57.2]} 5. d4 {[%clk 0:03:05.9]}
5... Nc6 {[%clk 0:02:56.5]} 6. dxe5 {[%clk 0:03:05.9]} 6... dxe5 {[%clk
0:02:57.6]} 7. Qxd8+ {[%clk 0:03:05.9]} 7... Kxd8 {[%clk 0:02:59.5]} 8. g3
{[%clk 0:02:58.5]} 8... fxg3 {[%clk 0:02:57.8]} 9. hxg3 {[%clk 0:02:56.3]} 9...
Nf6 {[%clk 0:02:59.2]} 10. Bg5 {[%clk 0:02:56.7]} 10... Be7 {[%clk 0:02:51.7]}
11. O-O-O+ {[%clk 0:02:55.7]} 11... Ke8 {[%clk 0:02:53]} 12. Nd5 {[%clk
0:02:49.3]} 12... Nxd5 {[%clk 0:02:41.5]} 13. cxd5 {[%clk 0:02:48.5]} 13...
Bxg5+ {[%clk 0:02:15.8]} 14. Nxg5 {[%clk 0:02:48.4]} 14... Ne7 {[%clk
0:02:01.7]} 15. Nxh7 {[%clk 0:02:39.2]} 15... Ng6 {[%clk 0:01:47.9]} 16. Bb5+
{[%clk 0:02:35.5]} 16... Ke7 {[%clk 0:01:44]} 17. Ng5 {[%clk 0:02:31.7]} 17...
Bd7 {[%clk 0:01:35.2]} 18. Bxd7 {[%clk 0:02:29.2]} 18... Kxd7 {[%clk 0:01:37.1]}
19. Ne6 {[%clk 0:02:30.5]} 19... Ne7 {[%clk 0:01:10]} 20. Nc5+ {[%clk
0:02:29.7]} 20... Kd6 {[%clk 0:01:00.6]} 21. Nxb7+ {[%clk 0:02:28.7]} 21... Kd7
{[%clk 0:01:02.2]} 22. Nc5+ {[%clk 0:02:28.7]} 22... Kd6 {[%clk 0:01:03.5]} 23.
Nd3 {[%clk 0:02:24.5]} 23... Raf8 {[%clk 0:01:01.2]} 24. Rxh8 {[%clk 0:02:24.5]}
24... Rxh8 {[%clk 0:01:03.1]} 25. f4 {[%clk 0:02:25.3]} 25... Ng6 {[%clk
0:01:02.1]} 26. f5 {[%clk 0:02:07.2]} 26... Ne7 {[%clk 0:00:59.4]} 27. Rd2
{[%clk 0:02:07.4]} 27... Rh1+ {[%clk 0:00:49.6]} 28. Kc2 {[%clk 0:02:07.9]}
28... Rg1 {[%clk 0:00:50.2]} 29. b4 {[%clk 0:01:55.9]} 29... Rxg3 {[%clk
0:00:49.3]} 30. Re2 {[%clk 0:01:47.8]} 30... Ng8 {[%clk 0:00:44.7]} 31. Kc3
{[%clk 0:01:44]} 31... Nf6 {[%clk 0:00:45.1]} 32. Kc4 {[%clk 0:01:45.1]} 32...
Nh5 {[%clk 0:00:43.5]} 33. Nc5 {[%clk 0:01:37.9]} 33... Nf4 {[%clk 0:00:29.4]}
34. Re1 {[%clk 0:01:38]} 34... Rg2 {[%clk 0:00:24.6]} 35. a4 {[%clk 0:01:36.1]}
35... c6 {[%clk 0:00:21.6]} 36. dxc6 {[%clk 0:01:31.9]} 36... Kxc6 {[%clk
0:00:23.5]} 37. b5+ {[%clk 0:01:32.2]} 37... Kb6 {[%clk 0:00:24.7]} 38. Nd7+
{[%clk 0:01:31.8]} 38... Kc7 {[%clk 0:00:25.8]} 39. Nxe5 {[%clk 0:01:33]} 39...
Rc2+ {[%clk 0:00:25.3]} 40. Kb3 {[%clk 0:01:31.4]} 40... Rc5 {[%clk 0:00:23.1]}
41. Nc4 {[%clk 0:01:29.3]} 41... Nd3 {[%clk 0:00:21.1]} 42. Rd1 {[%clk
0:01:28.8]} 42... Ne5 {[%clk 0:00:22.4]} 43. Nxe5 {[%clk 0:01:25.8]} 43... Rxe5
{[%clk 0:00:24.3]} 44. Rd4 {[%clk 0:01:26]} 44... Re7 {[%clk 0:00:25.1]} 45. Kc4
{[%clk 0:01:26.2]} 45... Re5 {[%clk 0:00:26.4]} 46. Kd3 {[%clk 0:01:26.2]} 46...
Re7 {[%clk 0:00:23.7]} 47. Ke3 {[%clk 0:01:27.4]} 47... Kb6 {[%clk 0:00:23]} 48.
Rd5 {[%clk 0:01:26.3]} 48... Ka5 {[%clk 0:00:23.2]} 49. Rd4 {[%clk 0:01:27]}
49... Rc7 {[%clk 0:00:21.5]} 50. Kf4 {[%clk 0:01:28.2]} 50... Kb6 {[%clk
0:00:19.7]} 51. Kg5 {[%clk 0:01:28]} 51... Kc5 {[%clk 0:00:20.7]} 52. Rd5+
{[%clk 0:01:28.3]} 52... Kc4 {[%clk 0:00:21.4]} 53. Rd6 {[%clk 0:01:26.5]} 53...
Re7 {[%clk 0:00:22.3]} 54. Re6 {[%clk 0:01:26.2]} 54... Rd7 {[%clk 0:00:23.1]}
55. e5 {[%clk 0:01:25.6]} 55... Kd5 {[%clk 0:00:24]} 56. Re8 {[%clk 0:01:26.1]}
56... Rf7 {[%clk 0:00:24.4]} 57. f6 {[%clk 0:01:27]} 57... gxf6+ {[%clk
0:00:24.9]} 58. exf6 {[%clk 0:01:28]} 58... Rb7 {[%clk 0:00:25.6]} 59. Kg6
{[%clk 0:01:29]} 1-0

[Event "*** Titled Tuesday Blitz"]
[Site "Chess.com"]
[Date "2019.07.02"]
[Round "7"]
[White "GMKrikor"]
[Black "G_Threepwood"]
[Result "1-0"]
[WhiteElo "2714"]
[BlackElo "2475"]
[TimeControl "180+2"]
[EndTime "14:36:29 PDT"]
[Termination "GMKrikor won on time"]

1. e4 {[%clk 0:03:01.9]} 1... e5 {[%clk 0:03:00.8]} 2. Bc4 {[%clk 0:03:01.9]}
2... Nf6 {[%clk 0:03:00.3]} 3. d3 {[%clk 0:03:03]} 3... Nc6 {[%clk 0:03:01.4]}
4. Nc3 {[%clk 0:03:04]} 4... Na5 {[%clk 0:03:02.2]} 5. Qf3 {[%clk 0:03:04.4]}
5... Nxc4 {[%clk 0:03:02.3]} 6. dxc4 {[%clk 0:03:05.3]} 6... Be7 {[%clk
0:02:59.4]} 7. Nge2 {[%clk 0:03:06.3]} 7... O-O {[%clk 0:03:00]} 8. O-O {[%clk
0:03:06.9]} 8... d6 {[%clk 0:03:01.4]} 9. h3 {[%clk 0:03:07.5]} 9... Be6 {[%clk
0:03:01.6]} 10. b3 {[%clk 0:03:09.1]} 10... Nd7 {[%clk 0:02:53.5]} 11. Ng3
{[%clk 0:03:04]} 11... Re8 {[%clk 0:02:46.3]} 12. Be3 {[%clk 0:02:58.8]} 12...
Nf8 {[%clk 0:02:47.3]} 13. Rad1 {[%clk 0:02:59.5]} 13... b6 {[%clk 0:02:45.4]}
14. Nf5 {[%clk 0:02:57.9]} 14... Ng6 {[%clk 0:02:40]} 15. c5 {[%clk 0:02:50.6]}
15... bxc5 {[%clk 0:02:39.7]} 16. Bxc5 {[%clk 0:02:51]} 16... Nh4 {[%clk
0:02:06.1]} 17. Nxh4 {[%clk 0:02:44.5]} 17... Bxh4 {[%clk 0:02:06.6]} 18. Be3
{[%clk 0:02:44.1]} 18... Rf8 {[%clk 0:01:59.9]} 19. Qe2 {[%clk 0:02:30.5]} 19...
f5 {[%clk 0:01:57.9]} 20. f3 {[%clk 0:02:31.8]} 20... f4 {[%clk 0:01:46.6]} 21.
Bf2 {[%clk 0:02:32.3]} 21... Qg5 {[%clk 0:01:48]} 22. Bxh4 {[%clk 0:02:32.6]}
22... Qxh4 {[%clk 0:01:48.7]} 23. Nd5 {[%clk 0:02:29.5]} 23... Rf7 {[%clk
0:01:45.4]} 24. Qf2 {[%clk 0:02:22.8]} 24... Qd8 {[%clk 0:01:38.3]} 25. c4
{[%clk 0:02:20.9]} 25... g5 {[%clk 0:01:18.7]} 26. c5 {[%clk 0:02:10.4]} 26...
h5 {[%clk 0:01:19.3]} 27. cxd6 {[%clk 0:02:02.2]} 27... cxd6 {[%clk 0:01:21.2]}
28. Rd3 {[%clk 0:01:41.6]} 28... Rc8 {[%clk 0:01:18.8]} 29. Rfd1 {[%clk
0:01:42]} 29... g4 {[%clk 0:01:13.5]} 30. hxg4 {[%clk 0:01:26.1]} 30... hxg4
{[%clk 0:01:15.4]} 31. fxg4 {[%clk 0:01:27.1]} 31... Bxg4 {[%clk 0:01:16.1]} 32.
Re1 {[%clk 0:01:11.4]} 32... Qg5 {[%clk 0:01:13.7]} 33. Rc3 {[%clk 0:00:50.3]}
33... Rcf8 {[%clk 0:00:48.7]} 34. Rc7 {[%clk 0:00:46]} 34... Rxc7 {[%clk
0:00:13.2]} 35. Nxc7 {[%clk 0:00:47.1]} 35... f3 {[%clk 0:00:13.5]} 36. Nd5
{[%clk 0:00:36.8]} 36... Rf7 {[%clk 0:00:11.7]} 37. Ne3 {[%clk 0:00:35.2]} 37...
fxg2 {[%clk 0:00:03.7]} 38. Qxg2 {[%clk 0:00:35.6]} 38... Rf4 {[%clk 0:00:05.2]}
39. Rc1 {[%clk 0:00:23.5]} 39... Qh4 {[%clk 0:00:06]} 40. Nf5 {[%clk 0:00:18.1]}
40... Kf7 {[%clk 0:00:03.4]} 41. Nxh4 {[%clk 0:00:18.9]} 1-0

[Event "*** Titled Tuesday Blitz"]
[Site "Chess.com"]
[Date "2019.07.02"]
[Round "7"]
[White "BlackBoarder"]
[Black "Blitzstream"]
[Result "0-1"]
[WhiteElo "2501"]
[BlackElo "2779"]
[TimeControl "180+2"]
[EndTime "14:36:36 PDT"]
[Termination "Blitzstream won by resignation"]

1. e4 {[%clk 0:02:49.4]} 1... d5 {[%clk 0:03:00.8]} 2. exd5 {[%clk 0:02:50.2]}
2... Qxd5 {[%clk 0:03:02.7]} 3. Nf3 {[%clk 0:02:51.2]} 3... Bg4 {[%clk
0:03:03.2]} 4. Be2 {[%clk 0:02:50.7]} 4... Nc6 {[%clk 0:03:04.5]} 5. d4 {[%clk
0:02:48.3]} 5... O-O-O {[%clk 0:03:05.3]} 6. c4 {[%clk 0:02:46.3]} 6... Qd7
{[%clk 0:03:06]} 7. d5 {[%clk 0:02:35.8]} 7... Bxf3 {[%clk 0:03:06.4]} 8. Bxf3
{[%clk 0:02:32.8]} 8... Ne5 {[%clk 0:03:07.5]} 9. O-O {[%clk 0:02:10.9]} 9...
Nf6 {[%clk 0:03:00.5]} 10. Bf4 {[%clk 0:01:58.1]} 10... Nxf3+ {[%clk 0:02:23.4]}
11. Qxf3 {[%clk 0:01:58.1]} 11... Qf5 {[%clk 0:02:07]} 12. Nc3 {[%clk
0:01:13.4]} 12... g5 {[%clk 0:02:04.9]} 13. Be3 {[%clk 0:01:11.5]} 13... Qxf3
{[%clk 0:02:04.3]} 14. gxf3 {[%clk 0:01:13.4]} 14... a6 {[%clk 0:02:01.6]} 15.
Rfe1 {[%clk 0:01:07.4]} 15... h6 {[%clk 0:01:57.5]} 16. Bd4 {[%clk 0:01:06.2]}
16... Rd7 {[%clk 0:01:51.9]} 17. Bxf6 {[%clk 0:00:54.2]} 17... exf6 {[%clk
0:01:52.2]} 18. Ne4 {[%clk 0:00:41.2]} 18... Be7 {[%clk 0:01:46.8]} 19. Ng3
{[%clk 0:00:30.9]} 19... Bd6 {[%clk 0:01:44.7]} 20. Nf5 {[%clk 0:00:30.1]} 20...
Be5 {[%clk 0:01:32]} 21. Re2 {[%clk 0:00:30.5]} 21... h5 {[%clk 0:01:32]} 22.
Rc1 {[%clk 0:00:23.4]} 22... Rhd8 {[%clk 0:01:28.1]} 23. Ne3 {[%clk 0:00:19]}
23... Bf4 {[%clk 0:01:19.5]} 24. b3 {[%clk 0:00:13.8]} 24... Re7 {[%clk
0:01:15.2]} 25. Rce1 {[%clk 0:00:14.7]} 25... Rde8 {[%clk 0:01:16.4]} 26. Kf1
{[%clk 0:00:15.7]} 26... Bxh2 {[%clk 0:01:15.3]} 27. c5 {[%clk 0:00:08.4]} 27...
Bf4 {[%clk 0:01:14.9]} 28. c6 {[%clk 0:00:06.8]} 28... h4 {[%clk 0:01:05.6]} 29.
cxb7+ {[%clk 0:00:07.6]} 29... Kxb7 {[%clk 0:01:06]} 30. b4 {[%clk 0:00:04.6]}
30... h3 {[%clk 0:01:06.1]} 31. a4 {[%clk 0:00:03.4]} 31... h2 {[%clk
0:01:04.2]} 32. Kg2 {[%clk 0:00:04.7]} 32... Bd6 {[%clk 0:01:04.8]} 33. b5
{[%clk 0:00:02.1]} 33... a5 {[%clk 0:01:05.4]} 34. Rc2 {[%clk 0:00:03.1]} 34...
f5 {[%clk 0:01:03.9]} 35. Rec1 {[%clk 0:00:04.1]} 35... Rxe3 {[%clk 0:00:28.3]}
36. fxe3 {[%clk 0:00:05.1]} 36... Rxe3 {[%clk 0:00:30.2]} 37. Rc6 {[%clk
0:00:03.3]} 37... g4 {[%clk 0:00:23.4]} 38. fxg4 {[%clk 0:00:03.7]} 38... fxg4
{[%clk 0:00:24.5]} 39. b6 {[%clk 0:00:04.9]} 39... Re2+ {[%clk 0:00:23]} 40. Kh1
{[%clk 0:00:06]} 40... g3 {[%clk 0:00:22.9]} 41. Rxc7+ {[%clk 0:00:03.7]} 41...
Bxc7 {[%clk 0:00:21.9]} 42. Rxc7+ {[%clk 0:00:04.4]} 42... Kxb6 {[%clk
0:00:22.7]} 43. Rxf7 {[%clk 0:00:02.7]} 43... Re1+ {[%clk 0:00:22.8]} 44. Kg2
{[%clk 0:00:04.2]} 0-1

[Event "*** Titled Tuesday Blitz"]
[Site "Chess.com"]
[Date "2019.07.02"]
[Round "7"]
[White "Th3ChessViking"]
[Black "KaterynaLagno"]
[Result "1/2-1/2"]
[WhiteElo "2479"]
[BlackElo "2655"]
[TimeControl "180+2"]
[EndTime "14:36:37 PDT"]
[Termination "Game drawn - insufficient material"]

1. c4 {[%clk 0:03:01.9]} 1... Nf6 {[%clk 0:02:59.7]} 2. g3 {[%clk 0:03:02.3]}
2... g6 {[%clk 0:03:00.4]} 3. Bg2 {[%clk 0:03:03]} 3... Bg7 {[%clk 0:03:02.1]}
4. Nc3 {[%clk 0:03:03.1]} 4... O-O {[%clk 0:03:03.6]} 5. Nf3 {[%clk 0:03:04]}
5... d5 {[%clk 0:03:04.1]} 6. cxd5 {[%clk 0:03:04.2]} 6... Nxd5 {[%clk 0:03:06]}
7. O-O {[%clk 0:03:04.5]} 7... Nb6 {[%clk 0:03:04.6]} 8. d4 {[%clk 0:02:50.6]}
8... Nc6 {[%clk 0:03:05.2]} 9. d5 {[%clk 0:02:51.9]} 9... Na5 {[%clk 0:03:04.5]}
10. Qc2 {[%clk 0:02:52.1]} 10... c6 {[%clk 0:03:01.3]} 11. dxc6 {[%clk
0:02:52.6]} 11... Nxc6 {[%clk 0:03:00.9]} 12. Rd1 {[%clk 0:02:54.1]} 12... Bd7
{[%clk 0:03:01.6]} 13. Bf4 {[%clk 0:02:28.7]} 13... Qc8 {[%clk 0:03:00.7]} 14.
Rac1 {[%clk 0:02:14.2]} 14... Bf5 {[%clk 0:02:58.1]} 15. e4 {[%clk 0:02:07.2]}
15... Bg4 {[%clk 0:02:57.6]} 16. Nd5 {[%clk 0:01:38]} 16... Nxd5 {[%clk
0:02:45.1]} 17. exd5 {[%clk 0:01:39.9]} 17... Bxf3 {[%clk 0:02:45.8]} 18. Bxf3
{[%clk 0:01:40.3]} 18... Nd4 {[%clk 0:02:46.7]} 19. Qe4 {[%clk 0:01:35.8]} 19...
Nxf3+ {[%clk 0:02:36.2]} 20. Qxf3 {[%clk 0:01:37.7]} 20... Qf5 {[%clk
0:02:35.4]} 21. Qb3 {[%clk 0:01:19.4]} 21... b6 {[%clk 0:02:35.1]} 22. Rc7
{[%clk 0:01:17.3]} 22... Bf6 {[%clk 0:02:29.5]} 23. d6 {[%clk 0:01:11.9]} 23...
exd6 {[%clk 0:02:27.3]} 24. Bxd6 {[%clk 0:01:07.4]} 24... Be5 {[%clk 0:02:24.4]}
25. Bxe5 {[%clk 0:00:33.8]} 25... Qxe5 {[%clk 0:02:26.3]} 26. Rdd7 {[%clk
0:00:34.3]} 26... Qf5 {[%clk 0:02:27.4]} 27. Kg2 {[%clk 0:00:33.5]} 27... Rad8
{[%clk 0:02:17.5]} 28. Rxd8 {[%clk 0:00:27.6]} 28... Rxd8 {[%clk 0:02:19.4]} 29.
Rxa7 {[%clk 0:00:26.3]} 29... Qe4+ {[%clk 0:02:14.5]} 30. Qf3 {[%clk 0:00:25.7]}
30... Qxf3+ {[%clk 0:02:15.1]} 31. Kxf3 {[%clk 0:00:27.6]} 31... Rd2 {[%clk
0:02:15.9]} 32. b4 {[%clk 0:00:25.4]} 32... Rb2 {[%clk 0:02:10.2]} 33. a3 {[%clk
0:00:26.3]} 33... h5 {[%clk 0:02:09.8]} 34. h3 {[%clk 0:00:23.8]} 34... Kg7
{[%clk 0:02:10.3]} 35. Ra6 {[%clk 0:00:25]} 35... Rb3+ {[%clk 0:01:59.4]} 36.
Ke4 {[%clk 0:00:25.5]} 36... h4 {[%clk 0:02:00.2]} 37. gxh4 {[%clk 0:00:21.2]}
37... Rxh3 {[%clk 0:02:01]} 38. f3 {[%clk 0:00:21.9]} 38... Rxh4+ {[%clk
0:02:01]} 39. Ke3 {[%clk 0:00:23.3]} 39... b5 {[%clk 0:02:00.2]} 40. Ra5 {[%clk
0:00:20.5]} 40... Rh5 {[%clk 0:02:01.4]} 41. a4 {[%clk 0:00:21.9]} 41... bxa4
{[%clk 0:02:01]} 42. Rxa4 {[%clk 0:00:13.7]} 42... Rh1 {[%clk 0:02:01.1]} 43.
Kd4 {[%clk 0:00:11.3]} 43... Rf1 {[%clk 0:02:00]} 44. Ra3 {[%clk 0:00:11.6]}
44... Rb1 {[%clk 0:01:58.8]} 45. Kc5 {[%clk 0:00:12.4]} 45... g5 {[%clk
0:02:00.1]} 46. b5 {[%clk 0:00:13.4]} 46... Kg6 {[%clk 0:02:01.7]} 47. b6 {[%clk
0:00:13.8]} 47... f5 {[%clk 0:02:03.4]} 48. Kc6 {[%clk 0:00:14.7]} 48... g4
{[%clk 0:02:03]} 49. fxg4 {[%clk 0:00:14.8]} 49... fxg4 {[%clk 0:02:04.9]} 50.
b7 {[%clk 0:00:15.2]} 50... Rc1+ {[%clk 0:01:57.9]} 51. Kb6 {[%clk 0:00:14.6]}
51... Rb1+ {[%clk 0:01:58.8]} 52. Kc6 {[%clk 0:00:15.9]} 52... Rc1+ {[%clk
0:01:58.8]} 53. Kd5 {[%clk 0:00:12.1]} 53... Rb1 {[%clk 0:01:59.2]} 54. Ra6+
{[%clk 0:00:12.1]} 54... Kf5 {[%clk 0:01:54.8]} 55. Kc6 {[%clk 0:00:12.9]} 55...
Rc1+ {[%clk 0:01:50.1]} 56. Kb6 {[%clk 0:00:12.5]} 56... Rb1+ {[%clk 0:01:50.9]}
57. Kc7 {[%clk 0:00:13.8]} 57... Rxb7+ {[%clk 0:01:48.4]} 58. Kxb7 {[%clk
0:00:15.7]} 58... g3 {[%clk 0:01:49.6]} 59. Kc6 {[%clk 0:00:15.4]} 59... g2
{[%clk 0:01:46.6]} 60. Ra1 {[%clk 0:00:14]} 60... Ke4 {[%clk 0:01:47.4]} 61. Kd6
{[%clk 0:00:10.4]} 61... Kf3 {[%clk 0:01:46.6]} 62. Ke5 {[%clk 0:00:11.5]} 62...
Kf2 {[%clk 0:01:47.6]} 63. Ra2+ {[%clk 0:00:12.2]} 63... Kg3 {[%clk 0:01:47.5]}
64. Rxg2+ {[%clk 0:00:08.5]} 64... Kxg2 {[%clk 0:01:49.4]} 1/2-1/2

[Event "*** Titled Tuesday Blitz"]
[Site "Chess.com"]
[Date "2019.07.02"]
[Round "7"]
[White "ehrenfeld"]
[Black "MasterKroket"]
[Result "0-1"]
[WhiteElo "2540"]
[BlackElo "2399"]
[TimeControl "180+2"]
[EndTime "14:36:46 PDT"]
[Termination "MasterKroket won by resignation"]

1. e4 {[%clk 0:03:01.9]} 1... c5 {[%clk 0:03:00.8]} 2. Nf3 {[%clk 0:03:02]} 2...
e6 {[%clk 0:03:02.2]} 3. b3 {[%clk 0:03:02.6]} 3... Nf6 {[%clk 0:03:02.9]} 4. e5
{[%clk 0:02:59.9]} 4... Nd5 {[%clk 0:03:04.2]} 5. Bb2 {[%clk 0:03:01]} 5... Nc6
{[%clk 0:03:05.1]} 6. g3 {[%clk 0:03:01.9]} 6... b6 {[%clk 0:03:03.3]} 7. Bg2
{[%clk 0:03:02.5]} 7... Bb7 {[%clk 0:03:04.7]} 8. O-O {[%clk 0:03:03]} 8... Be7
{[%clk 0:03:03.1]} 9. Qe2 {[%clk 0:02:56.8]} 9... O-O {[%clk 0:03:03.1]} 10. c4
{[%clk 0:02:56.8]} 10... Nc7 {[%clk 0:03:02.6]} 11. Nc3 {[%clk 0:02:45.8]} 11...
f5 {[%clk 0:03:01.6]} 12. Rad1 {[%clk 0:02:38.8]} 12... Qe8 {[%clk 0:02:47.7]}
13. d4 {[%clk 0:02:35.3]} 13... cxd4 {[%clk 0:02:47.8]} 14. Nxd4 {[%clk
0:02:34.9]} 14... Nxd4 {[%clk 0:02:47.7]} 15. Rxd4 {[%clk 0:02:34.6]} 15... Bxg2
{[%clk 0:02:49.3]} 16. Kxg2 {[%clk 0:02:35.1]} 16... Bc5 {[%clk 0:02:48.6]} 17.
Rd3 {[%clk 0:02:31.9]} 17... f4 {[%clk 0:02:46.2]} 18. Ne4 {[%clk 0:02:19.9]}
18... fxg3 {[%clk 0:02:39.8]} 19. hxg3 {[%clk 0:02:19.7]} 19... Rf5 {[%clk
0:02:15.9]} 20. Rfd1 {[%clk 0:02:01.8]} 20... Rd8 {[%clk 0:02:06.1]} 21. Qd2
{[%clk 0:01:32.1]} 21... Rf7 {[%clk 0:01:15.9]} 22. Nxc5 {[%clk 0:01:13.7]}
22... bxc5 {[%clk 0:01:15.6]} 23. Qe3 {[%clk 0:01:13.6]} 23... Qf8 {[%clk
0:01:11.4]} 24. Ba3 {[%clk 0:01:10.6]} 24... Na6 {[%clk 0:01:07.1]} 25. Rd6
{[%clk 0:01:09.9]} 25... Nb4 {[%clk 0:01:08.1]} 26. Qxc5 {[%clk 0:01:02.4]}
26... Nxa2 {[%clk 0:01:09.3]} 27. Qe3 {[%clk 0:00:55.4]} 27... Nc3 {[%clk
0:01:04.1]} 28. Rc1 {[%clk 0:00:39.1]} 28... Ne4 {[%clk 0:00:52.7]} 29. Qxe4
{[%clk 0:00:38.8]} 29... Rxf2+ {[%clk 0:00:53]} 30. Kg1 {[%clk 0:00:27]} 30...
Ra2 {[%clk 0:00:48.4]} 31. Bc5 {[%clk 0:00:25.6]} 31... Qf7 {[%clk 0:00:41.3]}
32. Rf1 {[%clk 0:00:24]} 32... Qh5 {[%clk 0:00:42.5]} 33. Rf2 {[%clk 0:00:24.9]}
33... Ra1+ {[%clk 0:00:41.2]} 34. Rf1 {[%clk 0:00:26.1]} 34... Ra2 {[%clk
0:00:33.8]} 35. Bf2 {[%clk 0:00:27.1]} 35... Rf8 {[%clk 0:00:24.7]} 36. Rxd7
{[%clk 0:00:21.5]} 36... Re2 {[%clk 0:00:17.9]} 37. Qb7 {[%clk 0:00:19.2]} 37...
Qg4 {[%clk 0:00:16]} 38. Qg2 {[%clk 0:00:14.4]} 38... Rf3 {[%clk 0:00:13.1]} 39.
Rd8+ {[%clk 0:00:14.3]} 39... Kf7 {[%clk 0:00:13.9]} 40. Rd3 {[%clk 0:00:12.1]}
40... Rxd3 {[%clk 0:00:10.3]} 41. Bc5+ {[%clk 0:00:13.1]} 41... Kg6 {[%clk
0:00:09.8]} 0-1